fUST/lending_fUST_20250301
["ID","MTS","AMOUNT","RATE_DAILY","PERIOD"]
[354870936,1740763556435,-500.0,0.0005041,120]
[354870937,1740763556463,-500.0,0.0005041,120]
[354870938,1740763556491,-500.0,0.0005041,120]
[354870939,1740763556523,-500.0,0.0005041,120]
[354870940,1740763556552,-500.0,0.0005041,120]
[354870941,1740763556582,-500.0,0.0005041,120]
[354870942,1740763556611,-500.0,0.0005041,120]
[354870943,1740763556642,-826.25,0.0005041,120]
[354870944,1740763556671,-917.02,0.0005041,120]
[354870945,1740763556700,-994.45,0.0005041,120]
[354870946,1740763556732,-500.0,0.0005041,120]
[354870947,1740763556759,-500.0,0.0005041,120]
[354870948,1740763556788,-500.0,0.0005041,120]
[354870949,1740763556817,-500.0,0.0005041,120]
[354870950,1740763556845,-1532.13,0.0005041,120]
[354870951,1740763556873,-453.32125402,0.0005041,120]
[354870952,1740763556902,-500.0,0.0005041,120]
[354870953,1740763556931,-1129.68,0.0005041,120]
[354870954,1740763556965,-500.0,0.0005041,120]
[354870955,1740763556996,-2323.23,0.0005041,120]
[354870956,1740763557027,-500.0,0.0005041,120]
[354870957,1740763557061,-500.0,0.0005041,120]
[354870958,1740763557093,-651.05,0.0005041,120]
[354870959,1740763557126,-500.0,0.0005041,120]
[354870960,1740763557156,-500.0,0.0005041,120]
[354870961,1740763557188,-442.35114585,0.0005041,120]
[354870962,1740763557218,-500.0,0.0005041,120]
[354870963,1740763557249,-500.0,0.0005041,120]
[354870964,1740763557282,-500.0,0.0005041,120]
[354870965,1740763557313,-500.0,0.0005041,120]
[354870966,1740763557346,-500.0,0.0005041,120]
[354870967,1740763557378,-500.0,0.0005041,120]
[354870968,1740763557409,-500.0,0.0005041,120]
[354870969,1740763557438,-511.83,0.0005041,120]
[354870970,1740763557468,-774.0,0.0005041,120]
[354870971,1740763557629,-500.0,0.0005041,120]
[354870972,1740763557666,-500.0,0.0005041,120]
[354870973,1740763557698,-514.58863677,0.0005041,120]
[354870974,1740763557730,-500.0,0.0005041,120]
[354870975,1740763557760,-500.0,0.0005041,120]
[354870976,1740763557790,-500.0,0.0005041,120]
[354870977,1740763557820,-500.0,0.0005041,120]
[354870978,1740763557850,-500.0,0.0005041,120]
[354870979,1740763557880,-340.69416759,0.0005041,120]
[354870980,1740763557910,-500.0,0.0005041,120]
[354870981,1740763557940,-349.80159002,0.0005041,120]
[354870982,1740763557971,-507.98811164,0.0005041,120]
[354870983,1740763558001,-500.0,0.0005041,120]
[354870984,1740763558033,-500.0,0.0005041,120]
[354870985,1740763558065,-500.0,0.0005041,120]
[354870986,1740763558098,-536.20881331,0.0005041,120]
[354870987,1740763558129,-1187.05,0.0005041,120]
[354870988,1740763558161,-500.0,0.0005041,120]
[354870989,1740763558193,-500.0,0.0005041,120]
[354870990,1740763558225,-990.19,0.0005041,120]
[354870991,1740763558257,-500.0,0.0005041,120]
[354870992,1740763558289,-2063.2,0.0005041,120]
[354870993,1740763558321,-500.0,0.0005041,120]
[354870994,1740763558353,-184.06044822,0.0005041,120]
[354870995,1740763558388,-588.96,0.0005041,120]
[354870996,1740763558421,-502.98,0.0005041,120]
[354870997,1740763558453,-500.0,0.0005041,120]
[354870998,1740763558486,-3034.08,0.0005041,120]
[354870999,1740763558518,-500.0,0.0005041,120]
[354871000,1740763558550,-500.0,0.0005041,120]
[354871001,1740763558583,-510.48824609,0.0005041,120]
[354871002,1740763558615,-500.0,0.0005041,120]
[354871003,1740763558651,-500.0,0.0005041,120]
[354871004,1740763558683,-500.0,0.0005041,120]
[354871005,1740763558714,-500.0,0.0005041,120]
[354871006,1740763558743,-668.35,0.0005041,120]
[354871007,1740763558774,-500.0,0.0005041,120]
[354871008,1740763558805,-226.18353264,0.0005041,120]
[354871009,1740763558836,-503.46,0.0005041,120]
[354871010,1740763558867,-500.0,0.0005041,120]
[354871011,1740763558898,-500.0,0.0005041,120]
[354871012,1740763558928,-500.0,0.0005041,120]
[354871013,1740763558959,-552.14,0.0005041,120]
[354871014,1740763558988,-524.63,0.0005041,120]
[354871015,1740763559017,-500.0,0.0005041,120]
[354871016,1740763559047,-500.0,0.0005041,120]
[354871017,1740763559077,-500.0,0.0005041,120]
[354871018,1740763559107,-500.0,0.0005041,120]
[354871019,1740763559137,-506.42604325,0.0005041,120]
[354871020,1740763559167,-500.0,0.0005041,120]
[354871021,1740763559197,-500.0,0.0005041,120]
[354871022,1740763559228,-500.0,0.0005041,120]
[354871023,1740763559258,-1000.0,0.0005041,60]
[354871024,1740763559296,-511.07654333,0.0005041,120]
[354871025,1740763559330,-504.16423933,0.0005041,120]
[354871026,1740763559364,-500.0,0.0005041,120]
[354871027,1740763559399,-500.0,0.0005041,120]
[354871028,1740763559433,-500.0,0.0005041,120]
[354871029,1740763559466,-2302.67,0.0005041,120]
[354871030,1740763559501,-1124.22,0.0005041,120]
[354871031,1740763559535,-500.0,0.0005041,120]
[354871032,1740763559568,-500.0,0.0005041,120]
[354871033,1740763559602,-754.61,0.0005041,120]
[354871034,1740763559634,-500.0,0.0005041,120]
[354871035,1740763559667,-500.0,0.0005041,120]
[354871036,1740763559697,-505.10029045,0.0005041,120]
[354871037,1740763559728,-500.0,0.0005041,120]
[354871038,1740763559759,-500.0,0.0005041,120]
[354871039,1740763559791,-518.19649691,0.0005041,120]
[354871040,1740763559825,-513.76304762,0.0005041,120]
[354871041,1740763559856,-500.0,0.0005041,120]
[354871042,1740763559888,-724.08,0.0005041,120]
[354871043,1740763559922,-500.0,0.0005041,120]
[354871044,1740763559955,-500.0,0.0005041,120]
[354871045,1740763559985,-500.0,0.0005041,120]
[354871046,1740763560016,-500.0,0.0005041,120]
[354871047,1740763560185,-488.62602551,0.0005041,120]
[354871048,1740763560220,-500.0,0.0005041,120]
[354871049,1740763560254,-500.0,0.0005041,120]
[354871050,1740763560288,-500.0,0.0005041,120]
[354871051,1740763560321,-500.0,0.0005041,120]
[354871052,1740763560357,-500.0,0.0005041,120]
[354871053,1740763560398,-500.0,0.0005041,120]
[354871054,1740763560432,-500.0,0.0005041,120]
[354871055,1740763560467,-500.0,0.0005041,120]
[354871056,1740763560499,-500.0,0.0005041,120]
[354871057,1740763560532,-500.0,0.0005041,120]
[354871058,1740763560566,-500.0,0.0005041,120]
[354871059,1740763560599,-500.0,0.0005041,120]
[354871060,1740763560634,-500.0,0.0005041,120]
[354871061,1740763560668,-500.0,0.0005041,120]
[354871062,1740763560702,-573.39,0.0005041,120]
[354871063,1740763560736,-500.0,0.0005041,120]
[354871064,1740763560769,-593.09,0.0005041,120]
[354871065,1740763560803,-500.0,0.0005041,120]
[354871066,1740763560836,-500.0,0.0005041,120]
[354871067,1740763560868,-500.0,0.0005041,120]
[354871068,1740763560903,-649.63860799,0.0005041,120]
[354871069,1740763560936,-500.0,0.0005041,120]
[354871070,1740763560971,-500.0,0.0005041,120]
[354871071,1740763561004,-465.32476368,0.0005041,120]
[354871072,1740763561038,-780.75,0.0005041,120]
[354871073,1740763561070,-510.29997173,0.0005041,120]
[354871074,1740763561103,-1221.28,0.0005041,120]
[354871075,1740763561135,-500.0,0.0005041,120]
[354871076,1740763561182,-500.0,0.0005041,120]
[354871077,1740763561223,-500.0,0.0005041,120]
[354871078,1740763561259,-713.46,0.0005041,120]
[354871079,1740763561296,-3718.03,0.0005041,120]
[354871080,1740763561331,-506.04046465,0.0005041,120]
[354871081,1740763561365,-1353.29,0.0005041,120]
[354871082,1740763561402,-2543.18,0.0005041,120]
[354871083,1740763561435,-879.65,0.0005041,120]
[354871084,1740763561467,-1268.46,0.0005041,120]
[354871085,1740763561501,-500.0,0.0005041,120]
[354871086,1740763561535,-500.0,0.0005041,120]
[354871087,1740763561570,-1098.58,0.0005041,120]
[354871088,1740763561604,-840.06,0.0005041,120]
[354871089,1740763561637,-504.74583127,0.0005041,120]
[354871090,1740763561673,-500.0,0.0005041,120]
[354871091,1740763561705,-4478.17,0.0005041,120]
[354871092,1740763561738,-2266.57,0.0005041,120]
[354871093,1740763561771,-1447.4,0.0005041,120]
[354871094,1740763561803,-27400.98,0.0005041,120]
[354871095,1740763561838,-500.0,0.0005041,120]
[354871096,1740763561871,-500.0,0.0005041,120]
[354871097,1740763561910,-804.14,0.0005041,120]
[354871098,1740763561951,-500.0,0.0005041,120]
[354871099,1740763561987,-507.46902359,0.0005041,120]
[354871100,1740763562023,-931.72,0.0005041,120]
[354871101,1740763562059,-500.0,0.0005041,120]
[354871102,1740763562094,-500.0,0.0005041,120]
[354871103,1740763562129,-500.0,0.0005041,120]
[354871104,1740763562163,-500.0,0.0005041,120]
[354871105,1740763562199,-500.0,0.0005041,120]
[354871106,1740763562235,-2476.74,0.0005041,120]
[354871107,1740763562270,-500.0,0.0005041,120]
[354871108,1740763562308,-4293.14,0.0005041,120]
[354871109,1740763562343,-500.0,0.0005041,120]
[354871110,1740763562383,-500.0,0.0005041,120]
[354871111,1740763562417,-538.09,0.0005041,120]
[354871112,1740763562452,-500.0,0.0005041,120]
[354871113,1740763562487,-506.9651269,0.0005041,120]
[354871114,1740763562519,-1007.07,0.0005041,120]
[354871115,1740763562552,-642.06,0.0005041,120]
[354871116,1740763562586,-500.0,0.0005041,120]
[354871117,1740763562620,-243.489535,0.0005041,120]
[354871118,1740763562656,-952.89,0.0005041,120]
[354871119,1740763562689,-6217.21,0.0005041,120]
[354871120,1740763562721,-500.0,0.0005041,120]
[354871121,1740763562910,-500.0,0.0005041,120]
[354871122,1740763562947,-500.0,0.0005041,120]
[354871123,1740763562983,-3197.64,0.0005041,120]
[354871124,1740763563021,-500.0,0.0005041,120]
[354871125,1740763563056,-500.0,0.0005041,120]
[354871126,1740763563090,-500.0,0.0005041,120]
[354871127,1740763563128,-1754.32,0.0005041,120]
[354871128,1740763563164,-500.0,0.0005041,120]
[354871129,1740763563200,-500.0,0.0005041,120]
[354871130,1740763563235,-500.0,0.0005041,120]
[354871131,1740763563270,-763.79,0.0005041,120]
[354871132,1740763563308,-5496.43,0.0005041,120]
[354871133,1740763563346,-500.0,0.0005041,120]
[354871134,1740763563384,-934.9,0.0005041,120]
[354871135,1740763563420,-515.86,0.0005041,120]
[354871136,1740763563455,-500.0,0.0005041,120]
[354871137,1740763563491,-2890.58,0.0005041,120]
[354871138,1740763563526,-500.0,0.0005041,120]
[354871139,1740763563561,-500.0,0.0005041,120]
[354871140,1740763563595,-6720.05,0.0005041,120]
[354871141,1740763563631,-1090.96,0.0005041,120]
[354871142,1740763563667,-500.0,0.0005041,120]
[354871143,1740763563710,-500.0,0.0005041,120]
[354871144,1740763563757,-500.0,0.0005041,120]
[354871145,1740763563795,-22918.52,0.0005041,120]
[354871146,1740763563833,-674.83,0.0005041,120]
[354871147,1740763563870,-1959.84,0.0005041,120]
[354871148,1740763563906,-500.0,0.0005041,120]
[354871149,1740763563942,-9025.25,0.0005041,120]
[354871150,1740763563979,-500.0,0.0005041,120]
[354871151,1740763564014,-500.0,0.0005041,120]
[354871152,1740763564049,-500.0,0.0005041,120]
[354871153,1740763564085,-690.65,0.0005041,120]
[354871154,1740763564120,-500.0,0.0005041,120]
[354871155,1740763564156,-3286.73,0.0005041,120]
[354871156,1740763564193,-500.0,0.0005041,120]
[354871157,1740763564231,-869.44,0.0005041,120]
[354871158,1740763564268,-500.0,0.0005041,120]
[354871159,1740763564309,-500.0,0.0005041,120]
[354871160,1740763564348,-500.0,0.0005041,120]
[354871161,1740763564386,-2161.42,0.0005041,120]
[354871162,1740763564421,-500.0,0.0005041,120]
[354871163,1740763564458,-1203.18,0.0005041,120]
[354871164,1740763564497,-1743.69,0.0005041,120]
[354871165,1740763564533,-509.60625217,0.0005041,120]
[354871166,1740763564570,-1904.71,0.0005041,120]
[354871167,1740763564605,-1807.51,0.0005041,120]
[354871168,1740763564638,-500.0,0.0005041,120]
[354871169,1740763564673,-572.8,0.0005041,120]
[354871170,1740763564707,-500.0,0.0005041,120]
[354871171,1740763564739,-500.0,0.0005041,120]
[354871172,1740763564773,-500.0,0.0005041,120]
[354871173,1740763564812,-500.0,0.0005041,120]
[354871174,1740763564846,-1222.38,0.0005041,120]
[354871175,1740763564881,-500.0,0.0005041,120]
[354871176,1740763564913,-500.0,0.0005041,120]
[354871177,1740763564948,-997.58,0.0005041,120]
[354871178,1740763564982,-1635.3,0.0005041,120]
[354871179,1740763565014,-500.0,0.0005041,120]
[354871180,1740763565046,-535.26,0.0005041,120]
[354871181,1740763565079,-555.6,0.0005041,120]
[354871182,1740763565112,-4600.73,0.0005041,120]
[354871183,1740763565147,-11109.96,0.0005041,120]
[354871184,1740763565179,-5240.82,0.0005041,120]
[354871185,1740763565211,-500.0,0.0005041,120]
[354871186,1740763565242,-882.26,0.0005041,120]
[354871187,1740763565274,-500.0,0.00050684,120]
[354871188,1740763565309,-508.80444652,0.00050684,120]
[354871189,1740763565341,-2517.67,0.00050684,120]
[354871190,1740763565372,-500.0,0.00050684,120]
[354871191,1740763565406,-570.76,0.00050684,120]
[354871192,1740763565547,-546.55606941,0.00050684,120]
[354871193,1740763565602,-500.0,0.00050684,120]
[354871194,1740763565637,-212.80821458,0.00050684,120]
[354871195,1740763565671,-777.18,0.00050684,120]
[354871196,1740763565703,-507.80619851,0.00050684,120]
[354871197,1740763565737,-500.0,0.00050684,120]
[354871198,1740763565769,-500.0,0.00050684,120]
[354871199,1740763565801,-500.0,0.00050684,120]
[354871200,1740763565833,-918.28,0.00050684,120]
[354871201,1740763565868,-500.0,0.00050684,120]
[354871202,1740763565900,-1189.99,0.00050684,120]
[354871203,1740763565935,-229.6017863,0.00050684,120]
[354871204,1740763565968,-500.0,0.00050684,120]
[354871205,1740763566000,-500.0,0.00050684,120]
[354871206,1740763566031,-500.0,0.00050684,120]
[354871207,1740763566063,-500.0,0.00050684,120]
[354871208,1740763566094,-500.0,0.00050684,120]
[354871209,1740763566127,-508.53167102,0.00050684,120]
[354871210,1740763566160,-247.65000614,0.00050684,120]
[354871211,1740763566192,-500.0,0.00050684,120]
[354871212,1740763566224,-508.04907697,0.00050684,120]
[354871213,1740763566256,-500.0,0.00050684,120]
[354871214,1740763566290,-500.0,0.00050684,120]
[354871215,1740763566321,-500.0,0.00050684,120]
[354871216,1740763566352,-500.0,0.00050684,120]
[354871217,1740763566386,-500.0,0.00050684,120]
[354871218,1740763566416,-656.3,0.00050684,120]
[354871219,1740763566447,-500.0,0.00050684,120]
[354871220,1740763566478,-2069.18,0.00050684,120]
[354871221,1740763566508,-500.0,0.00050684,120]
[354871222,1740763566537,-286.4769509,0.00050684,120]
[354871223,1740763566568,-500.0,0.00050684,120]
[354871224,1740763566599,-500.0,0.00050684,120]
[354871225,1740763566630,-500.0,0.00050684,120]
[354871226,1740763566660,-1148.56,0.00050684,120]
[354871227,1740763566690,-500.0,0.00050684,120]
[354871228,1740763566720,-500.0,0.00050684,120]
[354871229,1740763566750,-500.0,0.00050684,120]
[354871230,1740763566780,-2506.28,0.00050684,120]
[354871231,1740763566810,-500.0,0.00050684,120]
[354871232,1740763566840,-500.0,0.00050684,120]
[354871233,1740763566871,-500.0,0.00050684,120]
[354871234,1740763566902,-388.39632041,0.00050684,120]
[354871235,1740763566932,-500.0,0.00050684,120]
[354871236,1740763566963,-574.5,0.00050684,120]
[354871237,1740763566993,-500.0,0.00050684,120]
[354871238,1740763567025,-500.0,0.00050684,120]
[354871239,1740763567056,-500.0,0.00050684,120]
[354871240,1740763567087,-500.0,0.00050684,120]
[354871241,1740763567118,-500.0,0.00050684,120]
[354871242,1740763567150,-666.25,0.00050684,120]
[354871243,1740763567181,-500.0,0.00050684,120]
[354871244,1740763567213,-500.0,0.00050684,120]
[354871245,1740763567244,-500.0,0.00050684,120]
[354871246,1740763567276,-500.0,0.00050684,120]
[354871247,1740763567314,-500.0,0.00050684,120]
[354871248,1740763567347,-500.0,0.00050684,120]
[354871249,1740763567383,-500.0,0.00050684,120]
[354871250,1740763567415,-500.0,0.00050684,120]
[354871251,1740763567449,-1569.49,0.00050684,120]
[354871252,1740763567482,-500.0,0.00050684,120]
[354871253,1740763567515,-500.0,0.00050684,120]
[354871254,1740763567547,-1233.89,0.00050684,120]
[354871255,1740763567581,-500.0,0.00050684,120]
[354871256,1740763567615,-500.0,0.00050684,120]
[354871257,1740763567650,-500.0,0.00050684,120]
[354871258,1740763567685,-507.78733671,0.00050684,120]
[354871259,1740763567720,-500.0,0.00050684,120]
[354871260,1740763567753,-500.0,0.00050684,120]
[354871261,1740763567786,-500.0,0.00050684,120]
[354871262,1740763567939,-1344.52,0.00050684,120]
[354871263,1740763567974,-1065.91,0.00050684,120]
[354871264,1740763568008,-500.0,0.00050684,120]
[354871265,1740763568041,-500.0,0.00050684,120]
[354871266,1740763568075,-500.0,0.00050684,120]
[354871267,1740763568108,-500.0,0.00050684,120]
[354871268,1740763568141,-1671.97,0.00050684,120]
[354871269,1740763568173,-500.0,0.00050684,120]
[354871270,1740763568205,-500.0,0.00050684,120]
[354871271,1740763568237,-500.0,0.00050684,120]
[354871272,1740763568269,-841.24,0.00050684,120]
[354871273,1740763568304,-500.0,0.00050684,120]
[354871274,1740763568336,-500.0,0.00050684,120]
[354871275,1740763568368,-500.0,0.00050684,120]
[354871276,1740763568400,-2205.86,0.00050684,120]
[354871277,1740763568432,-500.0,0.00050684,120]
[354871278,1740763568465,-500.0,0.00050684,120]
[354871279,1740763568497,-926.05,0.00050684,120]
[354871280,1740763568528,-1146.34,0.00050684,120]
[354871281,1740763568560,-500.0,0.00050684,120]
[354871282,1740763568592,-2488.23,0.00050684,120]
[354871283,1740763568624,-500.0,0.00050684,120]
[354871284,1740763568657,-500.0,0.00050684,120]
[354871285,1740763568688,-500.0,0.00050684,120]
[354871286,1740763568718,-1011.27,0.00050684,120]
[354871287,1740763568749,-500.0,0.00050684,120]
[354871288,1740763568780,-500.0,0.00050684,120]
[354871289,1740763568813,-593.09,0.00050684,120]
[354871290,1740763568846,-500.0,0.00050684,120]
[354871291,1740763568878,-500.0,0.00050684,120]
[354871292,1740763568912,-500.0,0.00050684,120]
[354871293,1740763568944,-500.0,0.00050684,120]
[354871294,1740763568979,-500.0,0.00050684,120]
[354871295,1740763569011,-500.0,0.00050684,120]
[354871296,1740763569044,-500.0,0.00050684,120]
[354871297,1740763569076,-826.25,0.00050684,120]
[354871298,1740763569108,-917.02,0.00050684,120]
[354871299,1740763569139,-994.45,0.00050684,120]
[354871300,1740763569171,-500.0,0.00050684,120]
[354871301,1740763569202,-500.0,0.00050684,120]
[354871302,1740763569232,-500.0,0.00050684,120]
[354871303,1740763569262,-500.0,0.00050684,120]
[354871304,1740763569296,-1532.13,0.00050684,120]
[354871305,1740763569329,-500.0,0.00050684,120]
[354871306,1740763569362,-1129.68,0.00050684,120]
[354871307,1740763569396,-500.0,0.00050684,120]
[354871308,1740763569429,-500.0,0.00050684,120]
[354871309,1740763569462,-2323.23,0.00050684,120]
[354871310,1740763569496,-500.0,0.00050684,120]
[354871311,1740763569529,-651.05,0.00050684,120]
[354871312,1740763569562,-500.0,0.00050684,120]
[354871313,1740763569596,-500.0,0.00050684,120]
[354871314,1740763569630,-500.0,0.00050684,120]
[354871315,1740763569664,-500.0,0.00050684,120]
[354871316,1740763569699,-411.17353248,0.00050684,120]
[354871317,1740763569730,-500.0,0.00050684,120]
[354871318,1740763569762,-500.0,0.00050684,120]
[354871319,1740763569796,-500.0,0.00050684,120]
[354871320,1740763569830,-511.83,0.00050684,120]
[354871321,1740763569862,-774.0,0.00050684,120]
[354871322,1740763569896,-500.0,0.00050684,120]
[354871323,1740763569929,-500.0,0.00050684,120]
[354871324,1740763569961,-500.0,0.00050684,120]
[354871325,1740763569994,-649.21315766,0.00050684,120]
[354871326,1740763570025,-500.0,0.00050684,120]
[354871327,1740763570056,-500.0,0.00050684,120]
[354871328,1740763570089,-566.46820064,0.00050684,120]
[354871329,1740763570232,-500.0,0.00050684,120]
[354871330,1740763570266,-500.0,0.00050684,120]
[354871331,1740763570304,-500.0,0.00050684,120]
[354871332,1740763570339,-500.0,0.00050684,120]
[354871333,1740763570371,-1187.05,0.00050684,120]
[354871334,1740763570406,-500.0,0.00050684,120]
[354871335,1740763570438,-503.5856675,0.00050684,120]
[354871336,1740763570469,-990.19,0.00050684,120]
[354871337,1740763570501,-500.0,0.00050684,120]
[354871338,1740763570532,-2063.2,0.00050684,120]
[354871339,1740763570565,-500.0,0.00050684,120]
[354871340,1740763570598,-588.96,0.00050684,120]
[354871341,1740763570630,-502.98,0.00050684,120]
[354871342,1740763570663,-500.0,0.00050684,120]
[354871343,1740763570694,-3034.08,0.00050684,120]
[354871344,1740763570724,-500.0,0.00050684,120]
[354871345,1740763570754,-469.22290344,0.00050684,120]
[354871346,1740763570784,-500.0,0.00050684,120]
[354871347,1740763570813,-512.14615977,0.00050684,120]
[354871348,1740763570845,-500.0,0.00050684,120]
[354871349,1740763570875,-500.0,0.00050684,120]
[354871350,1740763570907,-668.35,0.00050684,120]
[354871351,1740763570938,-500.0,0.00050684,120]
[354871352,1740763570969,-503.46,0.00050684,120]
[354871353,1740763571000,-500.0,0.00050684,120]
[354871354,1740763571030,-500.0,0.00050684,120]
[354871355,1740763571060,-500.0,0.00050684,120]
[354871356,1740763571089,-552.14,0.00050684,120]
[354871357,1740763571119,-524.63,0.00050684,120]
[354871358,1740763571152,-500.0,0.00050684,120]
[354871359,1740763571190,-500.0,0.00050684,120]
[354871360,1740763571221,-500.0,0.00050684,120]
[354871361,1740763571250,-552.88482914,0.00050684,120]
[354871362,1740763571282,-500.0,0.00050684,120]
[354871363,1740763571311,-500.0,0.00050684,120]
[354871364,1740763571342,-500.0,0.00050684,120]
[354871365,1740763571373,-342.00808032,0.00050684,60]
[354871366,1740763571409,-500.0,0.00050684,120]
[354871367,1740763571442,-500.0,0.00050684,120]
[354871368,1740763571473,-202.68842494,0.00050684,120]
[354871369,1740763571505,-2302.67,0.00050684,120]
[354871370,1740763571537,-1124.22,0.00050684,120]
[354871371,1740763571569,-500.0,0.00050684,120]
[354871372,1740763571601,-500.0,0.00050684,120]
[354871373,1740763571633,-754.61,0.00050684,120]
[354871374,1740763571665,-500.0,0.00050684,120]
[354871375,1740763571700,-500.0,0.00050684,120]
[354871376,1740763571736,-500.0,0.00050684,120]
[354871377,1740763571765,-500.0,0.00050684,120]
[354871378,1740763571795,-500.0,0.00050684,120]
[354871379,1740763571824,-500.0,0.00050684,120]
[354871380,1740763571854,-724.08,0.00050684,120]
[354871381,1740763571884,-500.0,0.00050684,120]
[354871382,1740763571915,-500.0,0.00050684,120]
[354871383,1740763571946,-500.0,0.00050684,120]
[354871384,1740763571976,-500.0,0.00050684,120]
[354871385,1740763572006,-500.0,0.00050684,120]
[354871386,1740763572037,-500.0,0.00050684,120]
[354871387,1740763572067,-500.0,0.00050684,120]
[354871388,1740763572099,-500.0,0.00050684,120]
[354871389,1740763572133,-500.0,0.00050684,120]
[354871390,1740763572163,-500.0,0.00050684,120]
[354871391,1740763572194,-500.0,0.00050684,120]
[354871392,1740763572224,-500.0,0.00050684,120]
[354871393,1740763572383,-500.0,0.00050684,120]
[354871394,1740763572422,-500.0,0.00050684,120]
[354871395,1740763572459,-500.0,0.00050684,120]
[354871396,1740763572492,-500.0,0.00050684,120]
[354871397,1740763572524,-500.0,0.00050684,120]
[354871398,1740763572556,-573.39,0.00050684,120]
[354871399,1740763572588,-500.0,0.00050684,120]
[354871400,1740763572622,-593.09,0.00050684,120]
[354871401,1740763572656,-500.0,0.00050684,120]
[354871402,1740763572687,-500.0,0.00050684,120]
[354871403,1740763572717,-500.0,0.00050684,120]
[354871404,1740763572748,-500.0,0.00050684,120]
[354871405,1740763572777,-500.0,0.00050684,120]
[354871406,1740763572808,-780.75,0.00050684,120]
[354871407,1740763572842,-1221.28,0.00050684,120]
[354871408,1740763572877,-500.0,0.00050684,120]
[354871409,1740763572911,-500.0,0.00050684,120]
[354871410,1740763572947,-500.0,0.00050684,120]
[354871411,1740763572980,-713.46,0.00050684,120]
[354871412,1740763573013,-3718.03,0.00050684,120]
[354871413,1740763573044,-1353.29,0.00050684,120]
[354871414,1740763573076,-2543.18,0.00050684,120]
[354871415,1740763573108,-879.65,0.00050684,120]
[354871416,1740763573139,-1268.46,0.00050684,120]
[354871417,1740763573172,-500.0,0.00050684,120]
[354871418,1740763573203,-319.9974255,0.00050684,120]
[354871419,1740763573235,-1098.58,0.00050684,120]
[354871420,1740763573267,-840.06,0.00050684,120]
[354871421,1740763573307,-550.04005044,0.00050684,120]
[354871422,1740763573338,-4478.17,0.00050684,120]
[354871423,1740763573370,-2266.57,0.00050684,120]
[354871424,1740763573405,-1447.4,0.00050684,120]
[354871425,1740763573438,-27400.98,0.00050684,120]
[354871426,1740763573471,-509.48333657,0.00050684,120]
[354871427,1740763573504,-500.0,0.00050684,120]
[354871428,1740763573536,-804.14,0.00050684,120]
[354871429,1740763573570,-500.0,0.00050684,120]
[354871430,1740763573602,-931.72,0.00050684,120]
[354871431,1740763573636,-500.0,0.00050684,120]
[354871432,1740763573669,-500.0,0.00050684,120]
[354871433,1740763573704,-500.0,0.00050684,120]
[354871434,1740763573737,-500.0,0.00050684,120]
[354871435,1740763573771,-500.0,0.00050684,120]